lending/lending_fUSD_20250114
["ID","MTS","AMOUNT","RATE_DAILY","PERIOD"]
[348891594,1736859042233,-500.0,9.994e-05,2]
[348891595,1736859042242,-781.85,9.994e-05,2]
[348891596,1736859042252,-1460.33,9.994e-05,2]
[348891597,1736859042262,-1171.47,9.994e-05,2]
[348891598,1736859042271,-1024.7,9.994e-05,2]
[348891599,1736859042280,-1201.62,9.994e-05,2]
[348891600,1736859042289,-3096.15,9.994e-05,2]
[348891601,1736859042299,-1624.26,9.994e-05,2]
[348891602,1736859042309,-500.0,9.994e-05,2]
[348891603,1736859042318,-965.65,9.994e-05,2]
[348891604,1736859042327,-1522.53,9.994e-05,2]
[348891605,1736859042337,-1746.50592552,9.994e-05,2]
[348891606,1736859042378,-340.43828084,9.992e-05,2]
[348891607,1736859042388,-394.14407448,9.994e-05,2]
[348891608,1736859042397,-1534.46,9.994e-05,2]
[348891609,1736859042407,-254.20108015,9.994e-05,2]
[348891610,1736859042802,-1542.11,9.992e-05,2]
[348891611,1736859042811,-500.0,9.993e-05,2]
[348891612,1736859042820,-245.79891985,9.994e-05,2]
[348891613,1736859042829,-3839.92,9.994e-05,2]
[348891615,1736859042838,-1000.0,9.994e-05,2]
[348891617,1736859042847,-2020.18,9.994e-05,2]
[348891619,1736859042857,-1155.1,9.995e-05,2]
[348891621,1736859042866,-500.0,9.995e-05,2]
[348891622,1736859042875,-2801.13,9.995e-05,2]
[348891624,1736859042883,-2642.19,9.995e-05,2]
[348891625,1736859042893,-1268.0,9.996e-05,2]
[348891626,1736859042902,-2016.0,9.996e-05,2]
[348891627,1736859042911,-635.0,9.996e-05,2]
[348891628,1736859042919,-566.0,9.996e-05,2]
[348891629,1736859042928,-1853.099,9.996e-05,2]
[348891630,1736859042937,-854.0,9.996e-05,2]
[348891631,1736859042947,-906.0,9.996e-05,2]
[348891632,1736859042955,-1259.0,9.996e-05,2]
[348891633,1736859042964,-2945.0,9.996e-05,2]
[348891639,1736859043184,-3979.0,9.996e-05,2]
[348891640,1736859043194,-537.0,9.996e-05,2]
[348891641,1736859043203,-9629.0,9.996e-05,2]
[348891642,1736859043212,-1174.0,9.996e-05,2]
[348891643,1736859043221,-1104.0,9.996e-05,2]
[348891644,1736859043231,-3897.0,9.996e-05,2]
[348891645,1736859043239,-150.0,9.996e-05,2]
[348891646,1736859043249,-150.0,9.996e-05,2]
[348891647,1736859043258,-500.0,9.999e-05,2]
[348891648,1736859043267,-8354.42201603,9.999e-05,4]
[348891649,1736859043276,-4693.8154664,9.999e-05,4]
[348891650,1736859043285,-150.0,0.0001,2]
[348891651,1736859043294,-150.0,0.0001,2]
[348891652,1736859043303,-32638.23459772,0.0001,2]
[348891653,1736859043328,-6223.85981908,0.0001,2]
[348891654,1736859043354,-790.64458135,0.0001,2]
[348891655,1736859043378,-3141.29775439,0.0001,2]
[348891656,1736859043389,-963.39051514,0.0001,2]
[348891657,1736859043412,-37486.85118456,0.0001,2]
[348891658,1736859043441,-1906.0,0.0001,2]
[348891659,1736859043452,-348.7192708,0.0001,2]
[348891660,1736859044083,-500.0,9.992e-05,2]
[348891661,1736859044094,-500.0,9.993e-05,2]
[348891662,1736859044104,-8504.6486908,0.0001,2]
[348891663,1736859044124,-20237.7693523,0.0001,2]
[348891664,1736859044136,-1038220.4692158,0.0001,2]
[348891665,1736859044145,-23214.35255203,0.0001,2]
[348891666,1736859044155,-129739.8534903,0.0001,2]
[348891667,1736859044164,-1280018.24841876,0.0001,2]
[348891668,1736859044176,-71243.08698013,0.0001,2]
[348891669,1736859044185,-15631.95878092,0.0001,2]
[348891670,1736859044194,-282885.23090972,0.0001,2]
[348891671,1736859044203,-17698.45598178,0.0001,2]
[348891672,1736859044218,-438.6608822,0.0001,2]
[348891673,1736859044228,-335.899903,0.0001,2]
[348891674,1736859044242,-1725.75,0.0001,2]
[348891675,1736859044254,-360.20270103,0.0001,2]
[348891676,1736859044264,-1164.28729897,0.0001,2]
[348891679,1736859046045,-423.9,9.992e-05,2]
[348891680,1736859046057,-76.1,9.992e-05,2]
[348891681,1736859046067,-150.0,9.996e-05,2]
[348891682,1736859046076,-1458.2624554,0.0001,2]
[348891683,1736859046088,-563.27119587,0.0001,2]
[348891684,1736859046104,-6657.1336,0.0001,2]
[348891685,1736859046164,-9484.9,0.0001,2]
[348891686,1736859046220,-2636.36227419,0.0001,2]
[348891687,1736859046330,-2958.64768867,0.0001,2]
[348891688,1736859046342,-2070.87780327,0.0001,2]
[348891689,1736859046386,-51862.38436,0.0001,2]
[348891719,1736859100753,555.66492885,9.992e-05,120]
[348891720,1736859429678,528.13859654,0.0002,30]
[348891730,1736860034971,-570.76,8.929e-05,2]
[348891731,1736860034998,-250.0,8.948e-05,2]
[348891732,1736860035028,-715.36,8.983e-05,2]
[348891733,1736860035054,-20463.88,8.983e-05,2]
[348891736,1736860074521,2513.16,8.219e-05,2]
[348891750,1736860232387,-280.9,8.983e-05,2]
[348891751,1736860232399,-688.25793523,8.995e-05,2]
[348891752,1736860232417,-311.74206477,8.995e-05,2]
[348891753,1736860232427,-150.0,9e-05,2]
[348891754,1736860232438,-150.0,9e-05,2]
[348891755,1736860232447,-150.0,9e-05,2]
[348891756,1736860232456,-150.0,9e-05,2]
[348891757,1736860232466,-165.36,9.007e-05,2]
[348891758,1736860232478,-1543.20526203,9.162e-05,2]
[348891759,1736860232504,-353.730012,9.162e-05,2]
[348891760,1736860232611,-3712.19472597,9.162e-05,2]
[348891761,1736860232622,-12653.13126801,9.297e-05,2]
[348891762,1736860232671,-255.3829171,9.297e-05,2]
[348891763,1736860232683,-309.76,9.297e-05,2]
[348891764,1736860232695,-263.47079128,9.297e-05,2]
[348891765,1736860232707,-565.613972,9.297e-05,2]
[348891766,1736860232718,-468.45208656,9.297e-05,2]
[348891767,1736860232730,-270.5539524,9.297e-05,2]
[348891768,1736860232741,-440.63501265,9.297e-05,2]
[348891769,1736860232751,-150.0,9.333e-05,2]
[348891770,1736860232760,-150.0,9.598e-05,2]
[348891771,1736860232770,-935.36498735,9.599e-05,2]
[348891772,1736860232782,-595.743666,9.599e-05,2]
[348891773,1736860232795,-30767.89134665,9.599e-05,2]
[348891774,1736860232805,-150.0,9.667e-05,2]
[348891775,1736860232815,-553.18849999,9.667e-05,2]
[348891776,1736860232825,-4951.6813,9.793e-05,2]
[348891777,1736860232834,-220.422,9.793e-05,2]
[348891778,1736860232843,-179.8681494,9.8e-05,2]
[348891779,1736860232852,-163.1507,9.885e-05,2]
[348891780,1736860232862,-866.5956,9.891e-05,2]
[348891781,1736860232870,-1650.62,9.892e-05,2]
[348891782,1736860232879,-1040.2151,9.892e-05,2]
[348891783,1736860232888,-2528.9888,9.892e-05,2]
[348891785,1736860232898,-5000.0,9.892e-05,2]
[348891787,1736860232907,-1500.0,9.893e-05,2]
[348891789,1736860232920,-1000.0,9.893e-05,2]
[348891791,1736860232929,-15757.0787,9.893e-05,2]
[348891793,1736860232938,-264.2225,9.893e-05,2]
[348891795,1736860232948,-36121.6084,9.893e-05,2]
[348891796,1736860232956,-150.0,9.895e-05,2]
[348891797,1736860232966,-9631.0,9.895e-05,2]
[348891798,1736860232975,-3897.0,9.895e-05,2]
[348891799,1736860232984,-373.4487,9.9e-05,2]
[348891800,1736860232994,-1000.0,9.9e-05,2]
[348891802,1736860233003,-500.0,9.973e-05,2]
[348891804,1736860233012,-501.48196453,9.973e-05,2]
[348891805,1736860233022,-500.0,9.973e-05,2]
[348891807,1736860233034,-276.25840923,9.973e-05,2]
[348891809,1736860233043,-2457.379,9.985e-05,2]
[348891811,1736860233052,-169.801,9.986e-05,2]
[348891813,1736860233062,-1423.33,9.99e-05,2]
[348891815,1736860233071,-2569.24,9.99e-05,2]
[348891817,1736860233081,-3932.77,9.99e-05,2]
[348891819,1736860233090,-2244.92,9.99e-05,2]
[348891820,1736860233099,-500.0,9.99e-05,2]
[348891821,1736860233109,-1554.74,9.99e-05,2]
[348891822,1736860233119,-3880.86,9.99e-05,2]
[348891823,1736860233128,-1368.12,9.99e-05,2]
[348891824,1736860233137,-252.2915544,9.99e-05,2]
[348891825,1736860233147,-500.0,9.99e-05,2]
[348891826,1736860233156,-2494.15,9.99e-05,2]
[348891827,1736860233165,-500.0,9.99e-05,2]
[348891828,1736860233174,-1407.25,9.99e-05,2]
[348891829,1736860233183,-500.0,9.991e-05,2]
[348891830,1736860233192,-500.0,9.991e-05,2]
[348891831,1736860233202,-500.0,9.991e-05,2]
[348891832,1736860233211,-769.7,9.991e-05,2]
[348891833,1736860233220,-500.0,9.991e-05,2]
[348891834,1736860233229,-500.0,9.991e-05,2]
[348891835,1736860233239,-1538.38,9.991e-05,2]
[348891836,1736860233248,-500.0,9.991e-05,2]
[348891837,1736860233257,-500.0,9.991e-05,2]
[348891838,1736860233266,-500.0,9.991e-05,2]
[348891839,1736860233275,-392.37232619,9.991e-05,2]
[348891840,1736860233284,-500.0,9.991e-05,2]
[348891841,1736860233294,-500.0,9.991e-05,2]
[348891842,1736860233303,-500.0,9.991e-05,2]
[348891843,1736860233313,-500.0,9.991e-05,2]
[348891844,1736860233322,-546.63,9.991e-05,2]
[348891845,1736860233331,-500.0,9.991e-05,2]
[348891846,1736860233340,-500.0,9.991e-05,2]
[348891847,1736860233349,-500.0,9.991e-05,2]
[348891848,1736860233358,-501.70745995,9.991e-05,2]
[348891849,1736860233368,-466.44105597,9.991e-05,2]
[348891850,1736860233377,-500.0,9.991e-05,2]
[348891851,1736860233386,-500.0,9.991e-05,2]
[348891852,1736860233395,-500.0,9.991e-05,2]
[348891853,1736860233404,-236.29,9.991e-05,2]
[348891854,1736860233414,-1282.27,9.991e-05,2]
[348891855,1736860233423,-500.0,9.991e-05,2]
[348891856,1736860233432,-500.0,9.991e-05,2]
[348891857,1736860233442,-500.0,9.991e-05,2]
[348891858,1736860233451,-920.19,9.991e-05,2]
[348891859,1736860233460,-500.0,9.991e-05,2]
[348891860,1736860233469,-500.0,9.991e-05,2]
[348891861,1736860233478,-500.0,9.991e-05,2]
[348891862,1736860233487,-500.0,9.991e-05,2]
[348891863,1736860233496,-536.77,9.991e-05,2]
[348891864,1736860233507,-505.2395263,9.991e-05,2]
[348891865,1736860233516,-500.0,9.991e-05,2]
[348891866,1736860233525,-500.0,9.991e-05,2]
[348891867,1736860233534,-167.76730515,9.991e-05,2]
[348891868,1736860233543,-741.05,9.991e-05,2]
[348891869,1736860233553,-827.67,9.991e-05,2]
[348891870,1736860233563,-965.48,9.991e-05,2]
[348891871,1736860233571,-502.6947145,9.991e-05,2]
[348891872,1736860233581,-500.0,9.991e-05,2]
[348891873,1736860233590,-569.31561525,9.991e-05,2]
[348891874,1736860233599,-500.0,9.991e-05,2]
[348891875,1736860233610,-500.0,9.991e-05,2]
[348891876,1736860233619,-500.0,9.991e-05,2]
[348891877,1736860233628,-500.0,9.991e-05,2]
[348891878,1736860233637,-500.0,9.991e-05,2]
[348891879,1736860233647,-500.0,9.991e-05,2]
[348891880,1736860233656,-500.0,9.991e-05,2]
[348891881,1736860233665,-500.23388212,9.991e-05,2]
[348891882,1736860233675,-500.0,9.991e-05,2]
[348891883,1736860233687,-500.79492842,9.991e-05,2]
[348891884,1736860233708,-500.0,9.991e-05,2]
[348891885,1736860233718,-2171.44,9.991e-05,2]
[348891886,1736860233727,-500.31475181,9.991e-05,2]
[348891887,1736860233736,-568.46,9.991e-05,2]
[348891888,1736860233746,-500.0,9.991e-05,2]
[348891889,1736860233755,-500.0,9.991e-05,2]
[348891890,1736860233765,-500.0,9.991e-05,2]
[348891891,1736860233775,-500.0,9.991e-05,2]
[348891892,1736860233784,-500.0,9.991e-05,2]
[348891893,1736860233793,-500.66294993,9.991e-05,2]
[348891894,1736860233802,-437.95280794,9.991e-05,2]
[348891895,1736860233811,-642.0362101,9.991e-05,2]
[348891896,1736860233820,-905.45,9.991e-05,2]
[348891897,1736860233829,-500.0,9.991e-05,2]
[348891898,1736860233838,-500.0,9.991e-05,2]
[348891899,1736860233847,-500.0,9.991e-05,2]
[348891900,1736860233857,-500.0,9.991e-05,2]
[348891901,1736860233867,-242.44643237,9.991e-05,2]
[348891902,1736860233877,-851.03,9.991e-05,2]
[348891903,1736860233886,-500.0,9.991e-05,2]
[348891904,1736860233896,-500.0,9.991e-05,2]
[348891905,1736860233905,-1313.11,9.991e-05,2]
[348891906,1736860233916,-500.0,9.991e-05,2]
[348891907,1736860233928,-874.4,9.991e-05,2]
[348891908,1736860233937,-503.00753096,9.991e-05,2]
[348891909,1736860233946,-500.0,9.991e-05,2]
[348891910,1736860233956,-500.0,9.991e-05,2]
[348891911,1736860233966,-500.0,9.991e-05,2]
[348891912,1736860233976,-500.0,9.991e-05,2]
[348891913,1736860233985,-500.0,9.991e-05,2]
[348891914,1736860233995,-500.0,9.991e-05,2]
[348891915,1736860234004,-500.0,9.991e-05,2]
[348891916,1736860234014,-500.0,9.991e-05,2]
[348891917,1736860234023,-500.0,9.991e-05,2]
[348891918,1736860234032,-1194.97,9.991e-05,2]
[348891919,1736860234042,-500.0,9.991e-05,2]
[348891920,1736860234051,-500.0,9.991e-05,2]
[348891921,1736860234060,-1072.32,9.991e-05,2]
[348891922,1736860234069,-1802.8,9.991e-05,2]
[348891923,1736860234078,-520.44181488,9.991e-05,2]
[348891924,1736860234087,-500.0,9.991e-05,2]
[348891925,1736860234096,-500.0,9.991e-05,2]
[348891926,1736860234105,-500.0,9.991e-05,2]
[348891927,1736860234115,-500.0,9.991e-05,2]
[348891928,1736860234124,-500.0,9.991e-05,2]
[348891929,1736860234133,-981.45,9.991e-05,2]
[348891930,1736860234143,-500.0,9.991e-05,2]
[348891931,1736860234152,-253.69603969,9.991e-05,2]
[348891932,1736860234162,-1122.65,9.991e-05,2]
[348891933,1736860234171,-500.0,9.991e-05,2]
[348891934,1736860234180,-502.95145243,9.991e-05,2]
[348891935,1736860234189,-1171.03,9.991e-05,2]
[348891936,1736860234198,-3137.83,9.991e-05,2]
[348891937,1736860234208,-500.0,9.991e-05,2]
[348891938,1736860234217,-500.0,9.991e-05,2]
[348891939,1736860234226,-734.98,9.991e-05,2]
[348891940,1736860234235,-559.91,9.991e-05,2]
[348891941,1736860234244,-1188.52,9.991e-05,2]
[348891942,1736860234253,-500.0,9.991e-05,2]
[348891943,1736860234262,-500.0,9.991e-05,2]
[348891944,1736860234272,-1820.66,9.991e-05,2]
[348891945,1736860234281,-500.0,9.991e-05,2]
[348891946,1736860234290,-500.0,9.991e-05,2]
[348891947,1736860234299,-500.0,9.991e-05,2]
[348891948,1736860234309,-276.83783087,9.991e-05,2]
[348891953,1736860238187,-737.62,9.99e-05,2]
[348891954,1736860238198,-235.49973735,9.991e-05,2]
[348891955,1736860238207,-386.40213545,9.991e-05,2]
[348891956,1736860238403,-1124.41786455,9.991e-05,2]
[348891957,1736860238412,-500.0,9.991e-05,2]
[348891958,1736860238422,-373.33826177,9.991e-05,2]
[348891959,1736860238431,-1077.924861,9.991e-05,2]
[348891960,1736860238440,-769.23901268,9.991e-05,2]
[348891961,1736860238483,-387.71098732,9.991e-05,2]
[348891962,1736860238493,-500.0,9.991e-05,2]
[348891963,1736860238502,-983.83411729,9.991e-05,2]
[348891964,1736860238517,-35.25588271,9.991e-05,2]
[348891966,1736860238527,-456.80911729,9.991e-05,2]
[348892143,1736860240312,-43.19088271,9.991e-05,2]
[348892145,1736860240323,-247.82046961,9.991e-05,2]
[348892146,1736860240337,-252.17953039,9.991e-05,2]
[348892147,1736860240350,-747.82046961,9.991e-05,2]
[348892148,1736860240367,-982.22898205,9.991e-05,2]
[348892149,1736860240422,-2346.49054834,9.991e-05,2]
[348892150,1736860240434,-505.05392241,9.991e-05,2]
[348892151,1736860240448,-505.34606641,9.991e-05,2]
[348892152,1736860240460,-625.86,9.991e-05,2]
[348892153,1736860240471,-500.0,9.991e-05,2]
[348892155,1736860240486,-1237.072601,9.991e-05,2]
[348892157,1736860240497,-500.0,9.991e-05,2]
[348892159,1736860240508,-483.61,9.991e-05,2]
[348892161,1736860240519,-500.0,9.991e-05,2]
[348892163,1736860240531,-500.0,9.991e-05,2]
[348892166,1736860240542,-500.0,9.991e-05,2]
[348892168,1736860240553,-444.0503596,9.991e-05,2]
[348892170,1736860240565,-1181.08,9.991e-05,2]
[348892172,1736860240577,-773.13,9.991e-05,2]
[348892174,1736860240588,-500.0,9.991e-05,2]
[348892177,1736860240599,-500.0,9.991e-05,2]
[348892179,1736860240612,-963.53,9.991e-05,2]
[348892181,1736860240623,-834.0,9.991e-05,2]
[348892183,1736860240634,-500.0,9.991e-05,2]
[348892185,1736860240645,-500.0,9.991e-05,2]
[348892187,1736860240655,-1025.41,9.991e-05,2]
[348892189,1736860240666,-500.0,9.991e-05,2]
[348892192,1736860240677,-589.11,9.991e-05,2]
[348892194,1736860240688,-500.0,9.991e-05,2]
[348892196,1736860240699,-500.0,9.991e-05,2]
[348892198,1736860240710,-500.0,9.991e-05,2]
[348892200,1736860240721,-500.0,9.991e-05,2]
[348892203,1736860240732,-850.67,9.991e-05,2]
[348892205,1736860240743,-500.0,9.991e-05,2]
[348892207,1736860240756,-630.49,9.991e-05,2]
[348892209,1736860240767,-614.50300518,9.991e-05,2]
[348892211,1736860240778,-500.0,9.991e-05,2]
[348892213,1736860240789,-504.77050429,9.991e-05,2]
[348892215,1736860240800,-3287.26,9.991e-05,2]
[348892218,1736860240810,-500.0,9.991e-05,2]
[348892220,1736860240821,-1435.98,9.991e-05,2]
[348892222,1736860240832,-500.0,9.991e-05,2]
[348892224,1736860240843,-246.23008783,9.991e-05,2]
[348892225,1736860240853,-1000.17,9.991e-05,2]
[348892227,1736860240866,-500.0,9.991e-05,2]
[348892229,1736860240877,-503.11803573,9.991e-05,2]
[348892232,1736860240887,-500.0,9.991e-05,2]
[348892234,1736860240898,-500.0,9.991e-05,2]
[348892236,1736860240909,-500.0,9.991e-05,2]
[348892237,1736860240921,-1451.6,9.991e-05,2]
[348892238,1736860240932,-500.0,9.991e-05,2]
[348892239,1736860240950,-501.08034754,9.991e-05,2]
[348892240,1736860240963,-500.0,9.991e-05,2]
[348892241,1736860240976,-500.0,9.991e-05,2]
[348892242,1736860240990,-2921.91,9.991e-05,2]
[348892243,1736860241002,-560.08057712,9.991e-05,2]
[348892244,1736860241016,-500.0,9.991e-05,2]
[348892245,1736860241028,-500.0,9.991e-05,2]
[348892246,1736860241041,-880.93,9.991e-05,2]
[348892247,1736860241054,-500.0,9.991e-05,2]
[348892248,1736860241066,-500.0,9.991e-05,2]
[348892249,1736860241079,-8331.98,9.991e-05,2]
[348892250,1736860241091,-500.0,9.991e-05,2]
[348892252,1736860241103,-500.0,9.991e-05,2]
[348892254,1736860241115,-500.0,9.991e-05,2]
[348892256,1736860241127,-500.0,9.991e-05,2]
[348892257,1736860241138,-500.0,9.991e-05,2]
[348892258,1736860241150,-500.0,9.991e-05,2]
[348892259,1736860241163,-500.0,9.991e-05,2]
[348892260,1736860241174,-4844.26,9.991e-05,2]
[348892261,1736860241187,-500.0,9.991e-05,2]
[348892262,1736860241201,-500.0,9.991e-05,2]
[348892263,1736860241214,-500.0,9.991e-05,2]
[348892264,1736860241227,-500.0,9.991e-05,2]
[348892265,1736860241238,-1008.1,9.991e-05,2]
[348892266,1736860241249,-500.0,9.991e-05,2]
[348892267,1736860241261,-1127.78,9.991e-05,2]
[348892268,1736860241273,-500.0,9.991e-05,2]
[348892269,1736860241284,-500.0,9.991e-05,2]
[348892270,1736860241296,-1446.53,9.991e-05,2]
[348892271,1736860241307,-500.0,9.991e-05,2]
[348892272,1736860241318,-1026.69,9.991e-05,2]
[348892273,1736860241329,-500.0,9.991e-05,2]
[348892274,1736860241340,-500.0,9.991e-05,2]
[348892275,1736860241351,-500.0,9.991e-05,2]
[348892276,1736860241365,-5164.39,9.991e-05,2]
[348892277,1736860241376,-2872.05,9.991e-05,2]
[348892278,1736860241386,-500.0,9.991e-05,2]
[348892279,1736860241397,-975.06,9.991e-05,2]
[348892280,1736860241409,-2058.0,9.991e-05,2]
[348892281,1736860241420,-500.0,9.991e-05,2]
[348892282,1736860241431,-500.0,9.991e-05,2]
[348892283,1736860241442,-500.0,9.991e-05,2]
[348892284,1736860241452,-3636.15,9.991e-05,2]
[348892285,1736860241463,-604.16843705,9.991e-05,2]
[348892286,1736860241474,-500.0,9.991e-05,2]
[348892287,1736860241487,-583.19,9.991e-05,2]
[348892288,1736860241499,-1397.09,9.991e-05,2]
[348892289,1736860241510,-5235.17,9.991e-05,2]
[348892290,1736860241521,-500.0,9.991e-05,2]
[348892291,1736860241532,-1470.18,9.991e-05,2]
[348892292,1736860241543,-699.4,9.991e-05,2]
[348892293,1736860241554,-500.0,9.991e-05,2]
[348892294,1736860241566,-500.0,9.991e-05,2]
[348892295,1736860241577,-791.52,9.991e-05,2]
[348892296,1736860241588,-2905.65,9.991e-05,2]
[348892297,1736860241599,-500.0,9.991e-05,2]
[348892298,1736860241611,-868.19,9.991e-05,2]
[348892299,1736860241623,-2290.57,9.991e-05,2]
[348892300,1736860241634,-508.08543002,9.991e-05,2]
[348892301,1736860241646,-500.0,9.991e-05,2]
[348892302,1736860241657,-500.0,9.991e-05,2]
[348892303,1736860241670,-3128.18,9.991e-05,2]
[348892304,1736860241683,-500.0,9.991e-05,2]
[348892305,1736860241695,-500.0,9.991e-05,2]
[348892306,1736860241706,-547.95,9.991e-05,2]
[348892307,1736860241717,-500.0,9.991e-05,2]
[348892308,1736860241728,-271.01,9.991e-05,2]
[348892309,1736860241740,-500.0,9.991e-05,2]
[348892310,1736860241751,-500.0,9.991e-05,2]
[348892311,1736860241762,-921.32,9.991e-05,2]
[348892312,1736860241773,-406.37123333,9.991e-05,2]
[348892313,1736860241784,-500.0,9.991e-05,2]
[348892314,1736860241795,-181.17113599,9.992e-05,2]
[348892315,1736860241807,-500.0,9.992e-05,2]
[348892316,1736860241819,-500.0,9.992e-05,2]
[348892317,1736860241831,-500.0,9.992e-05,2]
[348892318,1736860241842,-500.0,9.992e-05,2]
[348892319,1736860241854,-241.94,9.992e-05,2]
[348892320,1736860241865,-500.0,9.992e-05,2]
[348892321,1736860241876,-500.0,9.992e-05,2]
[348892322,1736860241888,-500.0,9.992e-05,2]
[348892323,1736860241900,-500.0,9.992e-05,2]
[348892324,1736860241911,-500.0,9.992e-05,2]
[348892325,1736860241925,-500.0,9.992e-05,2]
[348892326,1736860241937,-209.57004453,9.992e-05,2]
[348892327,1736860241948,-507.62719032,9.992e-05,2]
[348892328,1736860241960,-500.0,9.992e-05,2]
[348892329,1736860241972,-500.0,9.992e-05,2]
[348892330,1736860241983,-500.0,9.992e-05,2]
[348892331,1736860241995,-297.41,9.992e-05,2]
[348892332,1736860242007,-500.0,9.992e-05,2]
[348892333,1736860242017,-500.0,9.992e-05,2]
[348892334,1736860242026,-500.0,9.992e-05,2]
[348892335,1736860242036,-500.0,9.992e-05,2]
[348892336,1736860242045,-263.55626935,9.992e-05,2]
[348892337,1736860242055,-500.0,9.992e-05,2]
[348892338,1736860242064,-500.0,9.992e-05,2]
[348892339,1736860242074,-500.0,9.992e-05,2]
[348892340,1736860242084,-500.0,9.992e-05,2]
[348892341,1736860242434,-500.0,9.992e-05,2]
[348892342,1736860242454,-500.0,9.992e-05,2]
[348892343,1736860242466,-500.0,9.992e-05,2]
[348892344,1736860242475,-500.0,9.992e-05,2]
[348892345,1736860242486,-500.0,9.992e-05,2]
[348892346,1736860242497,-500.0,9.992e-05,2]
[348892347,1736860242507,-500.0,9.992e-05,2]
[348892348,1736860242516,-500.0,9.992e-05,2]
[348892349,1736860242526,-500.0,9.992e-05,2]
[348892350,1736860242535,-928.19,9.992e-05,2]
[348892351,1736860242544,-500.0,9.992e-05,2]
[348892352,1736860242554,-500.0,9.992e-05,2]
[348892353,1736860242563,-830.54,9.992e-05,2]
[348892354,1736860242572,-500.0,9.992e-05,2]
[348892355,1736860242583,-662.43,9.992e-05,2]
[348892356,1736860242593,-500.0,9.992e-05,2]
[348892357,1736860242603,-975.14,9.992e-05,2]
[348892358,1736860242615,-500.0,9.992e-05,2]
[348892359,1736860242624,-500.0,9.992e-05,2]
[348892360,1736860242633,-706.19,9.992e-05,2]
[348892361,1736860242642,-500.0,9.992e-05,2]
[348892362,1736860242651,-653.12,9.992e-05,2]
[348892363,1736860242660,-500.0,9.992e-05,2]
[348892364,1736860242674,-500.0,9.992e-05,2]
[348892365,1736860242683,-500.0,9.992e-05,2]
[348892366,1736860242692,-500.0,9.992e-05,2]
[348892367,1736860242701,-500.0,9.992e-05,2]
[348892368,1736860242710,-500.0,9.992e-05,2]
[348892369,1736860242719,-500.0,9.992e-05,2]
[348892370,1736860242728,-500.0,9.992e-05,2]
[348892371,1736860242737,-534.41,9.992e-05,2]
[348892372,1736860242746,-500.0,9.992e-05,2]
[348892373,1736860242755,-500.0,9.992e-05,2]
[348892374,1736860242765,-500.0,9.992e-05,2]
[348892375,1736860242774,-712.08,9.992e-05,2]
[348892376,1736860242783,-544.20346807,9.992e-05,2]
[348892377,1736860242791,-500.0,9.992e-05,2]
[348892378,1736860242801,-500.0,9.992e-05,2]
[348892379,1736860242809,-500.0,9.992e-05,2]
[348892380,1736860242819,-538.41,9.992e-05,2]
[348892381,1736860242828,-853.95,9.992e-05,2]
[348892382,1736860242837,-1084.49,9.992e-05,2]
[348892383,1736860242847,-500.0,9.992e-05,2]
[348892384,1736860242856,-500.0,9.992e-05,2]
[348892385,1736860242867,-500.0,9.992e-05,2]
[348892386,1736860242876,-500.0,9.992e-05,2]
[348892387,1736860242885,-500.0,9.992e-05,2]
[348892388,1736860242894,-500.0,9.992e-05,2]
[348892389,1736860242903,-500.0,9.992e-05,2]
[348892390,1736860242912,-500.0,9.992e-05,2]
[348892391,1736860242925,-891.42,9.992e-05,2]
[348892392,1736860242935,-621.67,9.992e-05,2]
[348892393,1736860242944,-1195.5,9.992e-05,2]
[348892394,1736860242954,-1158.04,9.992e-05,2]
[348892395,1736860242963,-857.92,9.992e-05,2]
[348892396,1736860242972,-2863.68,9.992e-05,2]
[348892398,1736860242981,-632.36230463,9.992e-05,2]
[348892399,1736860242990,-500.0,9.992e-05,2]
[348892400,1736860243000,-500.0,9.992e-05,2]
[348892402,1736860243010,-1566.0,9.992e-05,2]
[348892403,1736860243019,-500.0,9.992e-05,2]
[348892404,1736860243029,-896.69,9.992e-05,2]